[Event "*** SCC Grand Prix: Titled Tuesday Blitz"]
[Site "Chess.com"]
[Date "2020.07.07"]
[Round "1"]
[White "boasovietica"]
[Black "Vaathi_Coming"]
[Result "1/2-1/2"]
[WhiteElo "2455"]
[BlackElo "2896"]
[TimeControl "180+1"]
[EndTime "10:07:15 PDT"]
[Termination "Game drawn by repetition"]

1. e4 {[%clk 0:02:57.5]} 1... c5 {[%clk 0:03:00.3]} 2. Nf3 {[%clk 0:02:57.9]}
2... Nc6 {[%clk 0:03:01]} 3. d4 {[%clk 0:02:58.2]} 3... cxd4 {[%clk 0:03:01.9]}
4. Nxd4 {[%clk 0:02:58.8]} 4... Nf6 {[%clk 0:03:02.2]} 5. Nc3 {[%clk 0:02:58.5]}
5... h5 {[%clk 0:03:02.7]} 6. Bg5 {[%clk 0:02:52.9]} 6... Qa5 {[%clk 0:03:02.4]}
7. Bxf6 {[%clk 0:02:48.3]} 7... gxf6 {[%clk 0:03:03.3]} 8. Nb3 {[%clk 0:02:44]}
8... Qg5 {[%clk 0:03:03.2]} 9. Qd3 {[%clk 0:02:24.6]} 9... e6 {[%clk 0:02:57.2]}
10. h4 {[%clk 0:02:19.2]} 10... Qe5 {[%clk 0:02:27.4]} 11. Be2 {[%clk
0:02:13.1]} 11... a6 {[%clk 0:02:23.1]} 12. O-O-O {[%clk 0:01:58.6]} 12... b5
{[%clk 0:02:22.1]} 13. g3 {[%clk 0:01:56]} 13... Qc7 {[%clk 0:02:15.1]} 14. f4
{[%clk 0:01:48.3]} 14... Bb7 {[%clk 0:02:13.9]} 15. Rhe1 {[%clk 0:01:45]} 15...
O-O-O {[%clk 0:02:11.6]} 16. Bf3 {[%clk 0:01:44]} 16... Kb8 {[%clk 0:02:11.3]}
17. Kb1 {[%clk 0:01:41.4]} 17... Be7 {[%clk 0:02:01.1]} 18. Qe3 {[%clk 0:01:18]}
18... d6 {[%clk 0:01:08.4]} 19. Nd5 {[%clk 0:00:50.6]} 19... exd5 {[%clk
0:01:05.3]} 20. exd5 {[%clk 0:00:51.5]} 20... Ne5 {[%clk 0:00:54]} 21. fxe5
{[%clk 0:00:51]} 21... fxe5 {[%clk 0:00:53.1]} 22. Nd4 {[%clk 0:00:42.5]} 22...
f5 {[%clk 0:00:18.6]} 23. Nxf5 {[%clk 0:00:35]} 23... Bf6 {[%clk 0:00:18.5]} 24.
Qe2 {[%clk 0:00:27.5]} 24... Bc8 {[%clk 0:00:17.7]} 25. Ne3 {[%clk 0:00:20.9]}
25... Rhg8 {[%clk 0:00:18.3]} 26. Rg1 {[%clk 0:00:19.8]} 26... e4 {[%clk
0:00:17.1]} 27. Bxh5 {[%clk 0:00:18.1]} 27... Qe7 {[%clk 0:00:17.7]} 28. c3
{[%clk 0:00:16.5]} 28... Qe5 {[%clk 0:00:14.4]} 29. Bg4 {[%clk 0:00:13]} 29...
Bxg4 {[%clk 0:00:13.5]} 30. Nxg4 {[%clk 0:00:13.9]} 30... Qh5 {[%clk 0:00:13.5]}
31. Qe3 {[%clk 0:00:09.5]} 31... Qxg4 {[%clk 0:00:08.5]} 32. Qb6+ {[%clk
0:00:09.7]} 32... Kc8 {[%clk 0:00:08.9]} 33. Qc6+ {[%clk 0:00:09.8]} 33... Kb8
{[%clk 0:00:09.5]} 34. Qb6+ {[%clk 0:00:10.2]} 34... Kc8 {[%clk 0:00:10]} 35.
Qc6+ {[%clk 0:00:09.5]} 35... Kb8 {[%clk 0:00:10.4]} 36. Qb6+ {[%clk 0:00:10]}
1/2-1/2

[Event "*** SCC Grand Prix: Titled Tuesday Blitz"]
[Site "Chess.com"]
[Date "2020.07.07"]
[Round "1"]
[White "UKR_Master"]
[Black "DarkAlekhine"]
[Result "0-1"]
[WhiteElo "2299"]
[BlackElo "2622"]
[TimeControl "180+1"]
[EndTime "10:07:15 PDT"]
[Termination "DarkAlekhine won by resignation"]

1. e4 {[%clk 0:03:00.9]} 1... e6 {[%clk 0:02:58.4]} 2. d4 {[%clk 0:03:00.3]}
2... d5 {[%clk 0:02:58.9]} 3. Nd2 {[%clk 0:03:00.5]} 3... Be7 {[%clk 0:02:58.8]}
4. Ngf3 {[%clk 0:02:46.1]} 4... Nf6 {[%clk 0:02:58.4]} 5. e5 {[%clk 0:02:46]}
5... Nfd7 {[%clk 0:02:58.7]} 6. Bd3 {[%clk 0:02:46.4]} 6... c5 {[%clk 0:02:59]}
7. c3 {[%clk 0:02:45.5]} 7... Nc6 {[%clk 0:02:59.2]} 8. O-O {[%clk 0:02:45.5]}
8... g5 {[%clk 0:02:58.3]} 9. h3 {[%clk 0:02:42.6]} 9... h5 {[%clk 0:02:48.8]}
10. c4 {[%clk 0:02:24.4]} 10... g4 {[%clk 0:02:14.6]} 11. cxd5 {[%clk
0:02:20.8]} 11... exd5 {[%clk 0:02:10.4]} 12. e6 {[%clk 0:02:19.3]} 12... fxe6
{[%clk 0:01:57.5]} 13. Bg6+ {[%clk 0:02:12.8]} 13... Kf8 {[%clk 0:01:57.5]} 14.
Nh2 {[%clk 0:02:12.2]} 14... Nxd4 {[%clk 0:01:50.4]} 15. hxg4 {[%clk 0:01:46.7]}
15... hxg4 {[%clk 0:01:51.3]} 16. Qxg4 {[%clk 0:01:47.2]} 16... Qc7 {[%clk
0:01:38.8]} 17. Ndf3 {[%clk 0:01:38.4]} 17... Nf6 {[%clk 0:01:34.2]} 18. Qg5
{[%clk 0:01:25]} 18... Ne4 {[%clk 0:01:06.6]} 19. Qe3 {[%clk 0:01:13.6]} 19...
Bg5 {[%clk 0:00:40.6]} 20. Qd3 {[%clk 0:01:12.2]} 20... Bxc1 {[%clk 0:00:25]}
21. Raxc1 {[%clk 0:01:13.1]} 21... Nxf3+ {[%clk 0:00:14.1]} 22. Nxf3 {[%clk
0:01:14]} 22... Qg7 {[%clk 0:00:13.5]} 23. Bxe4 {[%clk 0:01:09.9]} 23... Qh6
{[%clk 0:00:13.9]} 24. Nh4 {[%clk 0:01:01.7]} 24... Qxh4 {[%clk 0:00:12.7]} 25.
Qf3+ {[%clk 0:00:39]} 25... Ke7 {[%clk 0:00:12.5]} 26. Qh3 {[%clk 0:00:17.6]}
26... Qxh3 {[%clk 0:00:12.7]} 27. gxh3 {[%clk 0:00:18.5]} 27... dxe4 {[%clk
0:00:13.3]} 28. Rxc5 {[%clk 0:00:17.9]} 28... Rg8+ {[%clk 0:00:12.7]} 29. Kh2
{[%clk 0:00:17.8]} 29... b6 {[%clk 0:00:12.4]} 30. Rc7+ {[%clk 0:00:17.8]} 30...
Kf6 {[%clk 0:00:12.7]} 31. Rfc1 {[%clk 0:00:18]} 31... Ba6 {[%clk 0:00:13.1]}
32. Rh7 {[%clk 0:00:15.9]} 32... Rg6 {[%clk 0:00:12]} 33. Rcc7 {[%clk
0:00:15.1]} 33... Rag8 {[%clk 0:00:10.7]} 34. Rcf7+ {[%clk 0:00:14.6]} 34... Ke5
{[%clk 0:00:11]} 35. Rh5+ {[%clk 0:00:14.8]} 35... Kd6 {[%clk 0:00:11.5]} 36. h4
{[%clk 0:00:11.8]} 36... Be2 {[%clk 0:00:11.6]} 37. Kh3 {[%clk 0:00:12.7]} 37...
Bxh5 {[%clk 0:00:11.2]} 0-1

[Event "*** SCC Grand Prix: Titled Tuesday Blitz"]
[Site "Chess.com"]
[Date "2020.07.07"]
[Round "1"]
[White "EvgenyT"]
[Black "MathiasWomacka"]
[Result "1-0"]
[WhiteElo "2886"]
[BlackElo "2443"]
[TimeControl "180+1"]
[EndTime "10:07:16 PDT"]
[Termination "EvgenyT won on time"]

1. c4 {[%clk 0:02:59.6]} 1... c5 {[%clk 0:02:41.8]} 2. Nf3 {[%clk 0:02:58.7]}
2... Nf6 {[%clk 0:02:41.3]} 3. Nc3 {[%clk 0:02:57.9]} 3... e6 {[%clk 0:02:41.3]}
4. g3 {[%clk 0:02:57.2]} 4... b6 {[%clk 0:02:41.6]} 5. Bg2 {[%clk 0:02:56.9]}
5... Bb7 {[%clk 0:02:42.3]} 6. O-O {[%clk 0:02:56]} 6... Be7 {[%clk 0:02:41.5]}
7. d4 {[%clk 0:02:54]} 7... cxd4 {[%clk 0:02:42.4]} 8. Qxd4 {[%clk 0:02:53.9]}
8... d6 {[%clk 0:02:42.9]} 9. Rd1 {[%clk 0:02:52.6]} 9... a6 {[%clk 0:02:42]}
10. Bg5 {[%clk 0:02:46.1]} 10... Nbd7 {[%clk 0:02:41.3]} 11. Qd2 {[%clk
0:02:45.9]} 11... O-O {[%clk 0:02:36.4]} 12. Bf4 {[%clk 0:02:45.2]} 12... Ne8
{[%clk 0:02:36.5]} 13. Rac1 {[%clk 0:02:44.6]} 13... Rc8 {[%clk 0:02:32.6]} 14.
b3 {[%clk 0:02:44.2]} 14... h6 {[%clk 0:02:29.4]} 15. Be3 {[%clk 0:02:17.5]}
15... Qc7 {[%clk 0:02:08]} 16. Bd4 {[%clk 0:02:09.8]} 16... Nef6 {[%clk
0:02:01.3]} 17. Qb2 {[%clk 0:02:07.8]} 17... Rfe8 {[%clk 0:01:56.2]} 18. Qb1
{[%clk 0:01:59.1]} 18... Qb8 {[%clk 0:01:53.5]} 19. Nd2 {[%clk 0:01:50.9]} 19...
Bxg2 {[%clk 0:01:52.1]} 20. Kxg2 {[%clk 0:01:50.1]} 20... b5 {[%clk 0:01:51.5]}
21. Qd3 {[%clk 0:01:42.5]} 21... bxc4 {[%clk 0:01:40.7]} 22. bxc4 {[%clk
0:01:18.4]} 22... Qa8+ {[%clk 0:01:18]} 23. Qf3 {[%clk 0:01:16.5]} 23... Qxf3+
{[%clk 0:01:12.7]} 24. exf3 {[%clk 0:01:07.6]} 24... Rb8 {[%clk 0:01:05]} 25.
Nde4 {[%clk 0:00:55.1]} 25... Rec8 {[%clk 0:00:54.1]} 26. Bxf6 {[%clk
0:00:50.8]} 26... Nxf6 {[%clk 0:00:51]} 27. Nxf6+ {[%clk 0:00:47.8]} 27... Bxf6
{[%clk 0:00:50.6]} 28. Ne4 {[%clk 0:00:48.4]} 28... Rb2 {[%clk 0:00:41.8]} 29.
Nxd6 {[%clk 0:00:46.4]} 29... Rc6 {[%clk 0:00:39.8]} 30. Ne4 {[%clk 0:00:29.7]}
30... Rxa2 {[%clk 0:00:39.4]} 31. c5 {[%clk 0:00:29.3]} 31... Be7 {[%clk
0:00:20.7]} 32. Rd7 {[%clk 0:00:28.2]} 32... Kf8 {[%clk 0:00:20.5]} 33. Rb1
{[%clk 0:00:27.7]} 33... f5 {[%clk 0:00:15.6]} 34. Nd6 {[%clk 0:00:17.3]} 1-0

[Event "*** SCC Grand Prix: Titled Tuesday Blitz"]
[Site "Chess.com"]
[Date "2020.07.07"]
[Round "1"]
[White "dawtonlms"]
[Black "Joshukid"]
[Result "0-1"]
[WhiteElo "2375"]
[BlackElo "2699"]
[TimeControl "180+1"]
[EndTime "10:07:17 PDT"]
[Termination "Joshukid won by resignation"]

1. e4 {[%clk 0:03:00.1]} 1... c6 {[%clk 0:02:55.4]} 2. d4 {[%clk 0:02:59.9]}
2... d5 {[%clk 0:02:55.5]} 3. exd5 {[%clk 0:03:00.1]} 3... cxd5 {[%clk
0:02:56.4]} 4. c3 {[%clk 0:03:01]} 4... Nc6 {[%clk 0:02:55.9]} 5. Bd3 {[%clk
0:03:00.2]} 5... g6 {[%clk 0:02:55.5]} 6. Bf4 {[%clk 0:02:59.8]} 6... Bg7 {[%clk
0:01:45.8]} 7. Nd2 {[%clk 0:02:50.5]} 7... Nh6 {[%clk 0:01:43.8]} 8. Ngf3 {[%clk
0:02:48.8]} 8... O-O {[%clk 0:01:41.6]} 9. O-O {[%clk 0:02:46.7]} 9... f6 {[%clk
0:01:42]} 10. Re1 {[%clk 0:02:43.9]} 10... Nf7 {[%clk 0:01:41.4]} 11. Bg3 {[%clk
0:01:57.7]} 11... e5 {[%clk 0:01:38]} 12. dxe5 {[%clk 0:01:53.8]} 12... fxe5
{[%clk 0:01:38.9]} 13. Bb5 {[%clk 0:01:53.1]} 13... e4 {[%clk 0:01:30.8]} 14.
Bxc6 {[%clk 0:01:36.6]} 14... exf3 {[%clk 0:01:13.2]} 15. Ba4 {[%clk 0:01:33.6]}
15... fxg2 {[%clk 0:01:13.2]} 16. Bb3 {[%clk 0:01:25.8]} 16... Ng5 {[%clk
0:01:01]} 17. Kxg2 {[%clk 0:01:09.7]} 17... Kh8 {[%clk 0:00:44.4]} 18. Nf1
{[%clk 0:00:52.3]} 18... Bh3+ {[%clk 0:00:37.7]} 19. Kh1 {[%clk 0:00:46.1]}
19... d4 {[%clk 0:00:29.9]} 20. cxd4 {[%clk 0:00:30.3]} 20... Nf3 {[%clk
0:00:30.2]} 21. Re3 {[%clk 0:00:23.1]} 21... Nxd4 {[%clk 0:00:29.9]} 22. Rd3
{[%clk 0:00:20.4]} 22... Qb6 {[%clk 0:00:29.8]} 23. Ne3 {[%clk 0:00:19.7]} 23...
Rad8 {[%clk 0:00:27.5]} 24. Kg1 {[%clk 0:00:02.3]} 24... Qc6 {[%clk 0:00:21.7]}
25. Bd5 {[%clk 0:00:01.1]} 25... Rxd5 {[%clk 0:00:20.7]} 26. Nxd5 {[%clk
0:00:02]} 26... Qxd5 {[%clk 0:00:21.6]} 27. f3 {[%clk 0:00:01.8]} 27... Nxf3+
{[%clk 0:00:19.7]} 28. Rxf3 {[%clk 0:00:02.1]} 28... Qxf3 {[%clk 0:00:19.6]} 29.
Qxf3 {[%clk 0:00:02.2]} 29... Rxf3 {[%clk 0:00:20.5]} 30. Rd1 {[%clk 0:00:02.1]}
30... Bxb2 {[%clk 0:00:20.4]} 31. Rd8+ {[%clk 0:00:02.1]} 31... Kg7 {[%clk
0:00:19.9]} 32. Rd7+ {[%clk 0:00:03]} 32... Kf8 {[%clk 0:00:19.2]} 33. Rd1
{[%clk 0:00:03.9]} 33... Bd4+ {[%clk 0:00:17.7]} 34. Kh1 {[%clk 0:00:04.4]}
34... Rf1+ {[%clk 0:00:17.9]} 35. Rxf1+ {[%clk 0:00:04.2]} 35... Bxf1 {[%clk
0:00:18.8]} 36. Bd6+ {[%clk 0:00:04.3]} 36... Kf7 {[%clk 0:00:19.4]} 0-1

[Event "*** SCC Grand Prix: Titled Tuesday Blitz"]
[Site "Chess.com"]
[Date "2020.07.07"]
[Round "1"]
[White "druskacik"]
[Black "hongnhung1234"]
[Result "1-0"]
[WhiteElo "2571"]
[BlackElo "2229"]
[TimeControl "180+1"]
[EndTime "10:07:17 PDT"]
[Termination "druskacik won by resignation"]

1. e4 {[%clk 0:02:58.8]} 1... c5 {[%clk 0:02:54.7]} 2. Nf3 {[%clk 0:02:57.4]}
2... e6 {[%clk 0:02:54.3]} 3. d4 {[%clk 0:02:53.3]} 3... cxd4 {[%clk 0:02:55.2]}
4. Nxd4 {[%clk 0:02:54.1]} 4... Nc6 {[%clk 0:02:55.2]} 5. Nc3 {[%clk 0:02:53.1]}
5... Qc7 {[%clk 0:02:54.9]} 6. g3 {[%clk 0:02:52.6]} 6... a6 {[%clk 0:02:53.2]}
7. Bg2 {[%clk 0:02:51.9]} 7... Nf6 {[%clk 0:02:51.4]} 8. O-O {[%clk 0:02:45.3]}
8... Be7 {[%clk 0:02:48.1]} 9. Nxc6 {[%clk 0:02:36.6]} 9... bxc6 {[%clk
0:02:44.4]} 10. Na4 {[%clk 0:02:19]} 10... d5 {[%clk 0:02:31.5]} 11. exd5 {[%clk
0:02:11]} 11... cxd5 {[%clk 0:02:30.6]} 12. c4 {[%clk 0:02:11.6]} 12... Bb7
{[%clk 0:02:19.7]} 13. Bf4 {[%clk 0:02:00]} 13... Qa5 {[%clk 0:01:47.3]} 14. Bg5
{[%clk 0:01:44.7]} 14... Bc6 {[%clk 0:01:26.1]} 15. Nc3 {[%clk 0:01:37.8]} 15...
O-O-O {[%clk 0:01:13.7]} 16. Bxf6 {[%clk 0:01:18.4]} 16... Bxf6 {[%clk
0:01:06.9]} 17. cxd5 {[%clk 0:01:18.5]} 17... Bxc3 {[%clk 0:01:03.8]} 18. Rc1
{[%clk 0:01:11.3]} 18... Bxd5 {[%clk 0:00:46.5]} 19. Rxc3+ {[%clk 0:01:07.4]}
19... Qxc3 {[%clk 0:00:32.2]} 20. bxc3 {[%clk 0:01:03]} 20... Bxg2 {[%clk
0:00:31.1]} 21. Qa4 {[%clk 0:01:01.4]} 21... Bxf1 {[%clk 0:00:30.2]} 22. Qc6+
{[%clk 0:01:01.1]} 22... Kb8 {[%clk 0:00:29.7]} 23. Qb6+ {[%clk 0:01:00.3]}
23... Ka8 {[%clk 0:00:29]} 24. Kxf1 {[%clk 0:01:00.3]} 24... Rc8 {[%clk
0:00:21.4]} 25. Qxa6+ {[%clk 0:01:00.1]} 25... Kb8 {[%clk 0:00:21.7]} 26. Qb6+
{[%clk 0:01:01]} 26... Ka8 {[%clk 0:00:22.1]} 27. a4 {[%clk 0:00:50.3]} 27...
Rhd8 {[%clk 0:00:20.3]} 28. a5 {[%clk 0:00:50]} 28... Rd7 {[%clk 0:00:20.3]} 29.
a6 {[%clk 0:00:47]} 29... Rdc7 {[%clk 0:00:19]} 30. c4 {[%clk 0:00:46.4]} 30...
Rd7 {[%clk 0:00:17.4]} 31. c5 {[%clk 0:00:46.5]} 31... Rdc7 {[%clk 0:00:17.1]}
32. c6 {[%clk 0:00:46.8]} 32... f6 {[%clk 0:00:17]} 33. Ke2 {[%clk 0:00:40.4]}
33... e5 {[%clk 0:00:17.1]} 34. Ke3 {[%clk 0:00:40.8]} 34... Ra7 {[%clk
0:00:16.6]} 35. Qb7+ {[%clk 0:00:29.9]} 35... Rxb7 {[%clk 0:00:16.3]} 36. cxb7+
{[%clk 0:00:30.8]} 36... Kb8 {[%clk 0:00:16.9]} 37. bxc8=Q+ {[%clk 0:00:30.6]}
37... Kxc8 {[%clk 0:00:17.8]} 38. Ke4 {[%clk 0:00:31.1]} 38... Kb8 {[%clk
0:00:18]} 39. Kd5 {[%clk 0:00:31.6]} 39... Ka7 {[%clk 0:00:18]} 40. Ke6 {[%clk
0:00:32.2]} 40... Kxa6 {[%clk 0:00:18.4]} 41. Kf7 {[%clk 0:00:32.6]} 41... Kb5
{[%clk 0:00:18.1]} 42. Kxg7 {[%clk 0:00:32.6]} 42... f5 {[%clk 0:00:18.5]} 43.
Kf6 {[%clk 0:00:32.7]} 43... f4 {[%clk 0:00:18.8]} 44. Kxe5 {[%clk 0:00:32.7]}
44... fxg3 {[%clk 0:00:18.5]} 45. hxg3 {[%clk 0:00:33.3]} 45... Kc5 {[%clk
0:00:19.4]} 46. f4 {[%clk 0:00:33.3]} 46... Kc6 {[%clk 0:00:19.9]} 47. Ke6
{[%clk 0:00:33.5]} 47... Kc7 {[%clk 0:00:19.7]} 48. Ke7 {[%clk 0:00:34]} 1-0

[Event "*** SCC Grand Prix: Titled Tuesday Blitz"]
[Site "Chess.com"]
[Date "2020.07.07"]
[Round "1"]
[White "szachuspl"]
[Black "skslaviaorlova"]
[Result "1-0"]
[WhiteElo "2477"]
[BlackElo "1878"]
[TimeControl "180+1"]
[EndTime "10:07:18 PDT"]
[Termination "szachuspl won by resignation"]

1. d4 {[%clk 0:02:59.6]} 1... Nf6 {[%clk 0:02:59.6]} 2. c4 {[%clk 0:02:59.2]}
2... c5 {[%clk 0:03:00.1]} 3. d5 {[%clk 0:02:59.3]} 3... b5 {[%clk 0:03:00.1]}
4. Nf3 {[%clk 0:02:59.5]} 4... bxc4 {[%clk 0:02:59.7]} 5. Nc3 {[%clk 0:02:59]}
5... e6 {[%clk 0:02:59.8]} 6. e4 {[%clk 0:02:57.7]} 6... exd5 {[%clk 0:03:00]}
7. exd5 {[%clk 0:02:58.3]} 7... d6 {[%clk 0:02:59.2]} 8. Bxc4 {[%clk 0:02:58.2]}
8... Be7 {[%clk 0:02:56.6]} 9. O-O {[%clk 0:02:57.9]} 9... O-O {[%clk
0:02:56.8]} 10. Re1 {[%clk 0:02:55.5]} 10... Ba6 {[%clk 0:02:55]} 11. Nd2 {[%clk
0:02:48.2]} 11... Bxc4 {[%clk 0:02:41.4]} 12. Nxc4 {[%clk 0:02:47.6]} 12... Nbd7
{[%clk 0:02:42]} 13. a4 {[%clk 0:02:41.2]} 13... Nb6 {[%clk 0:02:40.5]} 14. Na3
{[%clk 0:02:38.9]} 14... a6 {[%clk 0:02:20.5]} 15. a5 {[%clk 0:02:33.6]} 15...
Nc8 {[%clk 0:02:05.3]} 16. Nc4 {[%clk 0:02:31.3]} 16... Na7 {[%clk 0:02:01.9]}
17. Bf4 {[%clk 0:02:30.5]} 17... Nb5 {[%clk 0:01:55.2]} 18. Nb6 {[%clk
0:02:23.6]} 18... Ra7 {[%clk 0:01:37.4]} 19. Nxb5 {[%clk 0:02:13.3]} 19... axb5
{[%clk 0:01:37.3]} 20. b4 {[%clk 0:02:14]} 20... c4 {[%clk 0:01:16.6]} 21. Ra3
{[%clk 0:02:04.2]} 21... Re8 {[%clk 0:01:14.3]} 22. Rae3 {[%clk 0:02:02.2]}
22... Bf8 {[%clk 0:01:11.4]} 23. Rxe8 {[%clk 0:01:50.6]} 23... Nxe8 {[%clk
0:01:10.8]} 24. Be3 {[%clk 0:01:50.7]} 24... Re7 {[%clk 0:00:59.8]} 25. h3
{[%clk 0:01:45]} 25... h6 {[%clk 0:00:57.6]} 26. Bd4 {[%clk 0:01:35.1]} 26... g6
{[%clk 0:00:53.8]} 27. Rxe7 {[%clk 0:01:30.9]} 27... Bxe7 {[%clk 0:00:47.3]} 28.
a6 {[%clk 0:01:16.4]} 28... Nc7 {[%clk 0:00:32.5]} 29. a7 {[%clk 0:01:13.2]}
29... Bg5 {[%clk 0:00:17.8]} 30. Qa1 {[%clk 0:01:06.6]} 30... Na8 {[%clk
0:00:17.3]} 31. Qa6 {[%clk 0:01:01.4]} 31... Qe8 {[%clk 0:00:12.6]} 32. Qc8
{[%clk 0:00:38.7]} 32... Qxc8 {[%clk 0:00:09.2]} 33. Nxc8 {[%clk 0:00:39.6]}
33... Bd8 {[%clk 0:00:09.6]} 34. Nxd6 {[%clk 0:00:38.5]} 34... Bb6 {[%clk
0:00:07.2]} 35. Bxb6 {[%clk 0:00:36.8]} 35... Nxb6 {[%clk 0:00:08.1]} 36. Nxb5
{[%clk 0:00:37.2]} 36... Kf8 {[%clk 0:00:08.3]} 37. d6 {[%clk 0:00:32.9]} 37...
Ke8 {[%clk 0:00:07.8]} 38. Kf1 {[%clk 0:00:33.2]} 38... Kd7 {[%clk 0:00:07.4]}
39. Ke2 {[%clk 0:00:33.8]} 39... f5 {[%clk 0:00:03.2]} 40. Kd2 {[%clk
0:00:30.6]} 40... Na8 {[%clk 0:00:03.1]} 41. Kc3 {[%clk 0:00:30.5]} 41... Nb6
{[%clk 0:00:03.7]} 42. Nc7 {[%clk 0:00:30.6]} 42... Kxd6 {[%clk 0:00:03.7]} 43.
a8=Q {[%clk 0:00:31]} 43... Nxa8 {[%clk 0:00:03.8]} 44. Nxa8 {[%clk 0:00:31.9]}
1-0

[Event "*** SCC Grand Prix: Titled Tuesday Blitz"]
[Site "Chess.com"]
[Date "2020.07.07"]
[Round "1"]
[White "SergeyKarjakin"]
[Black "elohunter1999"]
[Result "1-0"]
[WhiteElo "2959"]
[BlackElo "2453"]
[TimeControl "180+1"]
[EndTime "10:07:19 PDT"]
[Termination "SergeyKarjakin won on time"]

1. b3 {[%clk 0:02:59.4]} 1... e5 {[%clk 0:02:55.2]} 2. Bb2 {[%clk 0:03:00.3]}
2... Nc6 {[%clk 0:02:55.3]} 3. e3 {[%clk 0:02:58.9]} 3... Nf6 {[%clk 0:02:55.2]}
4. Bb5 {[%clk 0:02:59.2]} 4... Bd6 {[%clk 0:02:54.8]} 5. Na3 {[%clk 0:02:55.9]}
5... Na5 {[%clk 0:02:49.5]} 6. Be2 {[%clk 0:02:54]} 6... a6 {[%clk 0:02:45.9]}
7. c4 {[%clk 0:02:49.1]} 7... Qe7 {[%clk 0:02:43.1]} 8. Nb1 {[%clk 0:02:45]}
8... O-O {[%clk 0:02:39.8]} 9. Nc3 {[%clk 0:02:45.4]} 9... Nc6 {[%clk
0:02:34.7]} 10. d3 {[%clk 0:02:37.3]} 10... b6 {[%clk 0:02:21]} 11. Nf3 {[%clk
0:02:36.2]} 11... Bb7 {[%clk 0:02:20.9]} 12. O-O {[%clk 0:02:36.7]} 12... h6
{[%clk 0:01:56.9]} 13. a3 {[%clk 0:02:35.8]} 13... Qd8 {[%clk 0:01:53.9]} 14.
Qc2 {[%clk 0:02:26.8]} 14... Re8 {[%clk 0:01:53.4]} 15. Rfd1 {[%clk 0:02:17.7]}
15... Bf8 {[%clk 0:01:50.1]} 16. b4 {[%clk 0:02:13.2]} 16... d5 {[%clk 0:01:47]}
17. cxd5 {[%clk 0:02:10.3]} 17... Nxd5 {[%clk 0:01:47.9]} 18. Ne4 {[%clk
0:02:04.7]} 18... g6 {[%clk 0:01:31.5]} 19. Rac1 {[%clk 0:01:50.8]} 19... Bg7
{[%clk 0:01:31]} 20. Qb1 {[%clk 0:01:51.2]} 20... Qd7 {[%clk 0:01:26.3]} 21. h3
{[%clk 0:01:48.5]} 21... Rad8 {[%clk 0:01:25.6]} 22. Qa1 {[%clk 0:01:47.1]}
22... Kh7 {[%clk 0:01:13.4]} 23. Ned2 {[%clk 0:01:40.9]} 23... f5 {[%clk
0:00:53]} 24. Nc4 {[%clk 0:01:35.8]} 24... e4 {[%clk 0:00:50]} 25. dxe4 {[%clk
0:01:32]} 25... Bxb2 {[%clk 0:00:38.6]} 26. Qxb2 {[%clk 0:01:32.9]} 26... Rxe4
{[%clk 0:00:39.1]} 27. Rd2 {[%clk 0:01:20.9]} 27... Qe7 {[%clk 0:00:29.4]} 28.
Rcd1 {[%clk 0:01:21]} 28... Nf6 {[%clk 0:00:26.2]} 29. Rxd8 {[%clk 0:01:19.1]}
29... Nxd8 {[%clk 0:00:27.1]} 30. Nd4 {[%clk 0:01:11.5]} 30... Bd5 {[%clk
0:00:23.7]} 31. Nd2 {[%clk 0:01:08]} 31... Re5 {[%clk 0:00:12.5]} 32. Bxa6
{[%clk 0:01:07.3]} 32... Rxe3 {[%clk 0:00:11.4]} 33. fxe3 {[%clk 0:00:55.9]}
33... Qxe3+ {[%clk 0:00:12.3]} 34. Kf1 {[%clk 0:00:56.1]} 34... Nh5 {[%clk
0:00:12.7]} 35. Ne2 {[%clk 0:00:56.1]} 35... Nf4 {[%clk 0:00:06.6]} 36. Nxf4
{[%clk 0:00:50.8]} 36... Qxf4+ {[%clk 0:00:07.5]} 37. Kg1 {[%clk 0:00:50.3]}
37... Qe3+ {[%clk 0:00:07.2]} 38. Kh2 {[%clk 0:00:47.7]} 38... Qf2 {[%clk
0:00:06.9]} 39. Bf1 {[%clk 0:00:43.5]} 39... Ne6 {[%clk 0:00:07.1]} 40. Qe5
{[%clk 0:00:38.8]} 40... Nf4 {[%clk 0:00:06.3]} 41. Re1 {[%clk 0:00:26]} 1-0

[Event "*** SCC Grand Prix: Titled Tuesday Blitz"]
[Site "Chess.com"]
[Date "2020.07.07"]
[Round "1"]
[White "theblitzchamp"]
[Black "Veiso"]
[Result "1-0"]
[WhiteElo "2739"]
[BlackElo "2397"]
[TimeControl "180+1"]
[EndTime "10:07:19 PDT"]
[Termination "theblitzchamp won by resignation"]

1. d4 {[%clk 0:03:00.2]} 1... d5 {[%clk 0:02:58.2]} 2. Bf4 {[%clk 0:03:00.2]}
2... Nf6 {[%clk 0:02:56.9]} 3. e3 {[%clk 0:02:59.8]} 3... e6 {[%clk 0:02:57.5]}
4. Nf3 {[%clk 0:02:59.1]} 4... c5 {[%clk 0:02:56.8]} 5. c3 {[%clk 0:02:58.6]}
5... Nc6 {[%clk 0:02:57.2]} 6. Nbd2 {[%clk 0:02:57.2]} 6... Bd6 {[%clk
0:02:57.8]} 7. Bg3 {[%clk 0:02:57.5]} 7... O-O {[%clk 0:02:56.8]} 8. Bd3 {[%clk
0:02:57.6]} 8... b6 {[%clk 0:02:56.7]} 9. Qe2 {[%clk 0:02:58]} 9... Bb7 {[%clk
0:02:53.6]} 10. Rd1 {[%clk 0:02:58.5]} 10... h6 {[%clk 0:02:52.4]} 11. e4 {[%clk
0:02:47.7]} 11... Bxg3 {[%clk 0:02:52]} 12. hxg3 {[%clk 0:02:43.6]} 12... cxd4
{[%clk 0:02:47.1]} 13. cxd4 {[%clk 0:02:29.7]} 13... Nb4 {[%clk 0:02:45.4]} 14.
e5 {[%clk 0:02:21.1]} 14... Ne4 {[%clk 0:02:35.8]} 15. O-O {[%clk 0:01:46.7]}
15... Nxd3 {[%clk 0:02:26.9]} 16. Qxd3 {[%clk 0:01:46.4]} 16... Rc8 {[%clk
0:02:26.4]} 17. Rc1 {[%clk 0:01:42.9]} 17... Qd7 {[%clk 0:02:22.5]} 18. Qe3
{[%clk 0:01:37.9]} 18... Rxc1 {[%clk 0:02:08.5]} 19. Rxc1 {[%clk 0:01:37.5]}
19... Rc8 {[%clk 0:02:08.7]} 20. Nb3 {[%clk 0:01:34.8]} 20... Rxc1+ {[%clk
0:02:01.9]} 21. Qxc1 {[%clk 0:01:34.7]} 21... Qc6 {[%clk 0:02:00.4]} 22. Qxc6
{[%clk 0:01:21.1]} 22... Bxc6 {[%clk 0:02:01.3]} 23. Kf1 {[%clk 0:01:21.8]}
23... a5 {[%clk 0:01:55.5]} 24. Ke2 {[%clk 0:01:20.1]} 24... Bb5+ {[%clk
0:01:52.1]} 25. Ke3 {[%clk 0:01:16.3]} 25... Bf1 {[%clk 0:01:43.8]} 26. Ne1
{[%clk 0:01:15]} 26... Bc4 {[%clk 0:01:41.8]} 27. Nc1 {[%clk 0:01:12.7]} 27...
Kf8 {[%clk 0:01:36.3]} 28. Ned3 {[%clk 0:00:59.3]} 28... Ke7 {[%clk 0:01:31.5]}
29. Nf4 {[%clk 0:00:59.5]} 29... Bf1 {[%clk 0:01:20.3]} 30. f3 {[%clk
0:00:50.3]} 30... g5 {[%clk 0:01:17.2]} 31. Nh5 {[%clk 0:00:41.1]} 31... Bxg2
{[%clk 0:00:43.6]} 32. fxe4 {[%clk 0:00:39.9]} 32... Bxe4 {[%clk 0:00:32.4]} 33.
Nf6 {[%clk 0:00:40]} 33... Bg6 {[%clk 0:00:30.2]} 34. g4 {[%clk 0:00:24.7]}
34... Bb1 {[%clk 0:00:21.2]} 35. a3 {[%clk 0:00:23.4]} 35... b5 {[%clk 0:00:20]}
36. b4 {[%clk 0:00:22.2]} 36... axb4 {[%clk 0:00:18.9]} 37. axb4 {[%clk
0:00:23.1]} 37... Bc2 {[%clk 0:00:19.2]} 38. Ne2 {[%clk 0:00:23.1]} 38... Bd1
{[%clk 0:00:17.7]} 39. Nc3 {[%clk 0:00:23.4]} 39... Ba4 {[%clk 0:00:16]} 40. Kd2
{[%clk 0:00:20.5]} 40... Kd8 {[%clk 0:00:14.7]} 41. Kc1 {[%clk 0:00:20.6]} 41...
Bb3 {[%clk 0:00:14.8]} 42. Nxb5 {[%clk 0:00:19.9]} 42... Bc4 {[%clk 0:00:15.6]}
43. Nd6 {[%clk 0:00:20.3]} 1-0